bitfinex/quotes_ETHUSD_20251015
["timestamp","ask_amount","ask_price","bid_price","bid_amount"]
[1760500811231,0.001,4092.6,4092.5,2.56509419]
[1760500811414,2.483,4092.6,4092.5,3.01599419]
[1760500811616,2.483,4092.6,4092.5,3.56195468]
[1760500811987,0.001,4092.6,4092.5,3.56195468]
[1760500812333,0.001,4092.6,4092.5,3.58638962]
[1760500812488,2.483,4092.6,4092.5,7.89652217]
[1760500812690,0.001,4092.6,4092.5,7.87208723]
[1760500812890,2.483,4092.6,4092.5,7.87208723]
[1760500813692,0.001,4092.9,4092.8,2.44331508]
[1760500813929,0.001,4092.9,4092.5,0.1216]
[1760500814170,0.001,4092.9,4092.5,2.56506592]
[1760500814345,0.1672,4092.9,4092.5,0.1216]
[1760500814646,0.104,4092.8,4092.2,0.1216]
[1760500814936,0.104,4092.8,4091.8,0.1216]
[1760500814937,0.1216,4092.5,4091.8,0.1216]
[1760500815092,0.1216,4092.1,4091.7,2.44396208]
[1760500815297,4.684,4092.0,4091.8,2.44390726]
[1760500815608,4.684,4092.0,4091.4,0.1216]
[1760500815609,4.684,4092.0,4091.9,2.44385248]
[1760500815820,4.684,4092.0,4091.4,0.61909219]
[1760500815821,2.481,4092.0,4091.8,2.44391221]
[1760500816311,2.481,4092.0,4091.9,2.44385248]
[1760500816718,2.481,4092.0,4091.5,0.4509]
[1760500817017,2.481,4092.0,4091.1,0.002]
[1760500817018,0.6336,4091.8,4091.1,0.002]
[1760500817330,0.1216,4091.5,4091.1,0.002]
[1760500817511,2.481,4091.4,4091.1,0.002]
[1760500817713,0.1216,4091.2,4091.1,0.002]
[1760500817973,2.6026,4091.2,4091.1,2.44633037]
[1760500818328,0.1216,4091.2,4091.1,2.44633037]
[1760500818528,2.6026,4091.2,4091.1,2.44633037]
[1760500818954,0.171,4091.9,4091.1,0.714376]
[1760500819174,0.737,4091.8,4091.2,0.4509]
[1760500819365,0.50488053,4092.0,4091.2,0.4509]
[1760500819531,0.50488053,4092.0,4091.9,2.44385248]
[1760500819864,0.1216,4092.5,4092.0,2.44373984]
[1760500820029,2.481,4092.4,4092.0,0.4509]
[1760500820225,0.099,4092.3,4091.7,2.5655634]
[1760500820437,2.74126,4092.4,4091.7,0.1216]
[1760500820856,2.481,4092.4,4092.0,2.44374599]
[1760500821159,2.481,4092.4,4091.8,2.44391221]
[1760500821160,2.481,4092.3,4092.1,2.44370902]
[1760500821355,2.481,4092.3,4091.7,0.1216]
[1760500821356,2.58,4092.3,4091.7,0.1216]
[1760500821671,2.58,4092.3,4091.8,2.44389432]
[1760500821858,2.58,4092.3,4091.9,2.4438295]
[1760500821859,0.1216,4092.2,4091.9,2.4438295]
[1760500822159,0.1216,4092.2,4092.1,2.44373304]
[1760500822363,2.6026,4092.2,4092.1,2.44373304]
[1760500823262,0.001,4093.0,4092.8,2.44331508]
[1760500823263,0.001,4092.9,4092.8,2.44331508]
[1760500823635,0.211,4092.9,4092.8,2.89421508]
[1760500823958,0.526,4092.9,4092.8,3.01581508]
[1760500824337,0.001,4092.9,4092.8,3.01581508]
[1760500824536,0.303,4092.9,4092.8,3.56173972]
[1760500825354,2.505,4092.9,4092.8,3.56173972]
[1760500825569,2.505,4092.9,4092.8,3.11083972]
[1760500826065,2.505,4092.9,4092.8,3.56173972]
[1760500826260,0.303,4092.9,4092.8,3.44013972]
[1760500826490,0.422,4092.9,4092.8,3.56173972]
[1760500828389,0.993,4092.9,4092.8,3.56173972]
[1760500829181,1.535,4092.9,4092.8,3.56173972]
[1760500830679,0.001,4092.9,4092.8,3.56173972]
[1760500830887,2.444,4092.9,4092.8,3.56173972]
[1760500831786,2.482,4092.9,4092.8,3.56173972]
[1760500832354,2.482,4092.9,4092.8,3.11083972]
[1760500834212,2.482,4092.9,4092.8,3.56173972]
[1760500834507,2.482,4092.9,4092.8,3.11083972]
[1760500835270,4.684,4092.9,4092.8,3.11083972]
[1760500836004,2.482,4092.9,4092.8,3.11083972]
[1760500836320,2.7472,4092.9,4091.6,2.44397318]
[1760500836614,0.1003,4092.8,4092.3,0.1216]
[1760500836815,0.1216,4092.5,4091.8,2.44586739]
[1760500837022,0.1003,4092.4,4092.1,2.44371698]
[1760500837324,0.1003,4092.4,4091.8,0.1236]
[1760500837325,0.1003,4092.3,4091.9,2.44384407]
[1760500837468,0.1216,4092.5,4092.0,2.44373756]
[1760500837673,0.1003,4092.4,4092.2,2.44366824]
[1760500837900,0.1216,4092.5,4091.8,0.5745]
[1760500838078,0.1216,4092.5,4092.4,2.4435539]
[1760500838709,0.1226,4092.9,4092.8,2.44331508]
[1760500838890,0.001,4092.9,4092.8,2.44331508]
[1760500839084,0.867,4092.9,4092.8,2.56491508]
[1760500839823,2.481,4092.9,4092.8,2.84081508]
[1760500840010,2.481,4092.9,4092.8,3.36923632]
[1760500840538,2.481,4092.9,4092.8,3.09333632]
[1760500840833,2.481,4092.9,4092.8,2.56491508]
[1760500840999,2.481,4092.9,4092.8,3.01351508]
[1760500841515,2.481,4092.9,4092.8,2.56491508]
[1760500843394,0.001,4092.9,4092.8,2.56491508]
[1760500843595,2.481,4092.9,4092.8,2.56491508]
[1760500843795,2.481,4092.9,4092.8,0.1216]
[1760500843997,2.8942,4092.9,4092.8,2.44331508]
[1760500844328,2.481,4092.9,4092.8,2.44331508]
[1760500844711,2.481,4092.9,4092.8,2.56491508]
[1760500845301,4.683,4092.9,4092.8,2.56491508]
[1760500846132,1.102,4092.9,4092.8,2.56491508]
[1760500846353,3.582,4092.9,4092.8,2.56491508]
[1760500847436,0.001,4092.9,4092.8,2.56491508]
[1760500847735,2.481,4092.9,4092.8,3.51434631]
[1760500847938,2.481,4092.9,4092.8,3.06574631]
[1760500848138,2.481,4092.9,4092.8,2.56491508]
[1760500848546,2.7462,4092.9,4092.8,2.44331508]
[1760500848715,2.644,4092.9,4092.8,2.44331508]
[1760500849255,2.93098,4092.9,4092.5,0.1216]
[1760500849453,0.1022,4092.8,4091.8,0.002]
[1760500849746,0.2238,4092.8,4092.3,2.44360271]
[1760500849945,0.1022,4092.7,4092.6,2.44343449]
[1760500850130,0.1216,4092.8,4092.1,0.1216]
[1760500850535,0.1216,4092.8,4092.7,2.44337478]
[1760500850749,0.437278,4092.8,4092.6,2.44341837]
[1760500851419,2.48,4092.7,4092.6,2.44341837]
[1760500853452,0.437278,4092.8,4092.6,2.44341837]
[1760500853453,0.1216,4092.8,4092.7,2.44337478]
[1760500853643,0.001,4092.9,4092.8,2.44331508]
[1760500853837,0.001,4092.9,4092.8,3.46369744]
[1760500854158,2.481,4092.9,4092.8,3.11519744]
[1760500854356,2.481,4092.9,4092.8,2.56491508]
[1760500854931,2.481,4092.9,4092.8,2.44331508]
[1760500855135,2.6472,4092.9,4092.6,0.1216]
[1760500855342,2.202,4092.8,4092.7,2.44332791]
[1760500856063,2.202,4092.8,4091.9,0.4701]
[1760500856064,2.78612,4092.8,4091.9,0.4701]
[1760500856265,1.2,4092.8,4092.4,0.1216]
[1760500856479,0.099,4092.7,4091.8,2.44590259]
[1760500856666,0.1759,4091.9,4091.8,0.002]
[1760500856967,2.6559,4091.9,4091.8,0.002]
[1760500857175,2.93365,4091.9,4091.8,0.002]
[1760500857371,3.03345,4091.9,4091.8,0.002]
[1760500858849,2.93365,4091.9,4091.8,0.002]
[1760500859054,2.6559,4091.9,4091.8,0.002]
[1760500859295,0.1216,4092.1,4091.8,0.002]
[1760500859439,2.48,4092.0,4091.8,0.002]
[1760500859640,2.48,4092.0,4091.9,2.44385197]
[1760500859872,0.1216,4092.1,4092.0,2.44379276]
[1760500860169,2.6016,4092.1,4091.8,0.002]
[1760500860370,0.2739,4092.0,4091.8,0.002]
[1760500860877,0.2757,4091.9,4091.8,0.002]
[1760500861639,0.9093,4091.9,4091.8,0.002]
[1760500861967,5.27315248,4091.9,4091.8,0.002]
[1760500862145,6.32269162,4091.9,4091.8,0.002]
[1760500862652,3.87883914,4091.9,4091.8,0.002]
[1760500862847,6.25983914,4091.9,4091.8,0.002]
[1760500863089,2.48,4091.9,4091.8,0.002]
[1760500863303,2.6567,4091.9,4091.8,0.002]
[1760500864574,2.7557,4091.9,4091.8,0.002]
[1760500864777,2.6567,4091.9,4091.8,0.002]
[1760500865300,4.8587,4091.9,4091.8,0.002]
[1760500865488,5.57489402,4091.9,4091.8,0.002]
[1760500866300,0.3832402,4092.1,4091.8,0.4721]
[1760500866504,0.1216,4092.4,4091.9,0.4701]
[1760500866836,0.1216,4092.7,4092.6,2.44343449]
[1760500867116,2.393,4092.7,4092.0,2.4437658]
[1760500867425,2.44366605,4092.3,4091.3,0.002]
[1760500867580,0.1752,4091.9,4091.3,0.002]
[1760500867911,5.09905248,4091.9,4091.3,0.002]
[1760500868095,7.12025248,4091.9,4091.3,0.002]
[1760500868411,4.6764,4091.9,4091.3,0.002]
[1760500868614,5.42674172,4091.9,4091.3,0.002]
[1760500868907,8.5041942,4091.9,4091.3,0.002]
[1760500870729,6.06034172,4091.9,4091.3,0.002]
[1760500870929,2.67034172,4091.9,4091.3,0.4651]
[1760500871136,4.4,4091.9,4091.3,0.4651]
[1760500871346,7.47745248,4091.9,4091.3,0.002]
[1760500871519,7.57935248,4091.9,4091.3,0.002]
[1760500874417,7.96268719,4091.9,4091.3,0.002]
[1760500874646,7.96268719,4091.9,4091.1,1e-08]
[1760500874647,3.07787062,4091.2,4091.1,1e-08]
[1760500874814,20.57132648,4091.2,4091.1,1e-08]
[1760500875014,20.67322648,4091.2,4091.1,1e-08]
[1760500875359,21.77422648,4091.2,4091.1,1e-08]
[1760500875553,21.05664136,4091.2,4091.1,1e-08]
[1760500875842,23.40672061,4091.2,4091.1,1e-08]
[1760500876018,20.92672061,4091.2,4091.1,1e-08]
[1760500876219,7.83326475,4091.2,4091.1,1e-08]
[1760500876514,7.9631855,4091.2,4091.1,1e-08]
[1760500876732,5.3812855,4091.2,4091.1,1e-08]
[1760500877037,7.2276855,4091.2,4091.1,1e-08]
[1760500877847,2.86341488,4091.2,4091.1,1e-08]
[1760500878039,4.78341488,4091.2,4091.1,1e-08]
[1760500878250,8.5840489,4091.2,4091.1,1e-08]
[1760500878749,3.65977828,4091.2,4091.1,1e-08]
[1760500878951,6.14077828,4091.2,4091.1,1e-08]
[1760500879247,3.02617828,4091.2,4091.1,1e-08]
[1760500879454,4.78441488,4091.2,4091.1,0.68880001]
[1760500879650,9.48066688,4091.2,4091.1,0.68880001]
[1760500879854,11.9249375,4091.2,4091.1,1e-08]
[1760500880021,4.062652,4091.2,4091.1,0.68880001]
[1760500880222,4.062652,4091.2,4091.1,0.22570001]
[1760500880559,6.543652,4091.2,4091.1,0.68880001]
[1760500880923,6.543652,4091.2,4091.1,1e-08]
[1760500881227,7.44243131,4091.2,4091.1,1e-08]
[1760500881435,6.543652,4091.2,4091.1,0.68880001]
[1760500883863,4.062652,4091.2,4091.1,0.68880001]
[1760500884448,6.665252,4091.2,4091.1,3.13313038]
[1760500884847,6.665252,4091.2,4091.1,1e-08]
[1760500885322,6.266652,4091.2,4091.1,3.13313038]
[1760500885526,7.645652,4091.2,4091.1,3.69353117]
[1760500887357,4.062652,4091.2,4091.1,3.69353117]
[1760500887759,6.543652,4091.2,4091.1,3.69353117]
[1760500888480,4.062652,4091.2,4091.1,3.69353117]
[1760500888841,6.542652,4091.2,4091.1,3.69353117]
[1760500889481,6.542652,4091.2,4091.1,3.81546572]
[1760500889688,0.001,4092.8,4091.2,2.44427062]
[1760500889869,0.001,4092.8,4092.0,2.44374417]
[1760500890171,0.001,4092.8,4091.3,2.46862739]
[1760500890172,2.055,4092.7,4092.4,2.44353622]
[1760500890371,2.055,4092.7,4091.3,2.90731088]
[1760500890372,2.055,4092.7,4092.5,2.44348987]
[1760500890574,0.001,4092.8,4092.7,2.44337478]
[1760500891082,0.121,4092.8,4092.7,2.90647478]
[1760500891284,0.436,4092.8,4092.7,3.44147125]
[1760500891977,2.481,4092.8,4092.7,3.44147125]
[1760500892761,2.481,4092.8,4092.7,0.53499647]
[1760500892960,2.481,4092.8,4092.3,0.6888]
[1760500893185,2.481,4092.8,4092.4,0.4631]
[1760500893383,2.481,4092.8,4092.3,0.2257]
[1760500893859,2.481,4092.8,4091.9,0.2257]
[1760500894606,2.481,4092.8,4091.9,2.66954228]
[1760500894762,2.481,4092.8,4092.1,2.44370069]
[1760500895292,0.1216,4092.5,4091.9,0.6888]
[1760500895473,2.48,4092.4,4091.9,1.01423174]
[1760500895790,2.48,4092.4,4092.2,2.44365622]
[1760500896090,2.48,4092.4,4091.9,0.2257]
[1760500896291,2.48,4092.4,4091.8,0.1216]
[1760500896700,0.1216,4092.2,4091.7,2.44396166]
[1760500897190,0.1216,4092.2,4091.5,0.1216]
[1760500897390,2.48,4092.4,4091.6,2.44398358]
[1760500897391,0.1216,4091.8,4091.6,2.44398358]
[1760500897698,0.001,4092.8,4091.7,0.48753971]
[1760500897909,0.1216,4092.3,4091.6,0.1216]
[1760500898063,1.43,4092.2,4091.6,0.1216]
[1760500898260,1.43,4092.2,4091.3,0.4631]
[1760500898481,0.1216,4091.9,4091.7,2.44392976]
[1760500899590,0.1216,4091.9,4091.8,2.90701221]
[1760500899765,2.48,4091.9,4091.8,2.90701221]
[1760500899966,0.001,4092.2,4091.8,0.4631]
[1760500900166,1.238,4092.1,4091.6,0.1216]
[1760500900399,0.1216,4091.9,4091.5,2.44406785]
[1760500900721,0.1216,4091.9,4091.3,2.44421088]
[1760500900921,0.2939,4091.9,4091.2,0.1216]
[1760500901124,0.2939,4091.9,4091.3,2.44415452]
[1760500901321,0.1216,4091.9,4091.3,2.44415452]
[1760500901540,0.1216,4091.9,4091.4,2.44415114]
[1760500901919,0.1216,4091.9,4091.5,2.44407953]
[1760500902122,0.42996,4091.9,4091.2,0.1216]
[1760500902323,0.1216,4091.3,4091.1,1e-08]
[1760500902504,2.48,4091.2,4091.1,1e-08]
[1760500903541,0.001,4092.2,4091.6,2.44398642]
[1760500903738,2.48,4092.1,4091.5,2.44406499]
[1760500904245,2.48,4092.1,4091.6,2.44401665]
[1760500904480,2.48,4092.1,4091.8,2.44386622]
[1760500904744,0.6336,4092.3,4091.8,2.44386622]
[1760500905220,1.101,4092.2,4091.8,2.44391221]
[1760500905420,2.202,4092.2,4091.8,2.44391221]
[1760500905748,1.101,4092.1,4091.4,0.4471]
[1760500905948,2.48,4092.0,4091.5,2.44403583]
[1760500906153,2.48,4091.9,4091.6,0.4471]
[1760500906440,2.48,4091.9,4091.6,2.44401568]
[1760500906615,2.48,4091.9,4091.7,2.44396002]
[1760500906816,0.38321513,4092.2,4091.8,0.4471]
[1760500907026,2.48,4092.1,4091.9,0.4471]
[1760500907204,2.48,4092.1,4091.8,2.44390991]
[1760500907939,2.48,4092.1,4091.7,2.44397116]
[1760500908231,2.48,4092.1,4091.8,2.44390738]
[1760500908821,2.48,4092.1,4091.7,2.44395949]
[1760500909135,0.1702,4091.8,4091.1,1e-08]
[1760500909440,2.61413401,4091.8,4091.1,1e-08]
[1760500910002,2.44399582,4091.7,4091.1,1e-08]
[1760500910207,4.92403723,4091.6,4091.1,1e-08]
[1760500910738,2.48,4091.6,4091.1,1e-08]
[1760500911113,3.10215672,4091.6,4091.1,1e-08]
[1760500911308,2.5825,4091.6,4091.1,1e-08]
[1760500911511,2.48,4091.6,4091.1,1e-08]
[1760500911814,0.6336,4091.7,4091.2,2.44427062]
[1760500912029,2.44367324,4092.3,4091.3,0.4471]
[1760500912030,0.6336,4092.1,4091.3,0.4471]
[1760500912234,0.6336,4091.9,4091.3,2.89127963]
[1760500912942,0.6336,4091.9,4091.3,0.4471]
[1760500913142,0.6336,4091.8,4091.3,0.4471]
[1760500913432,2.48,4091.7,4091.4,0.4547]
[1760500913617,2.48,4091.6,4091.4,0.4547]
[1760500914034,0.1216,4091.4,4091.1,0.21620001]
[1760500914249,2.48,4091.3,4091.2,2.89897062]
[1760500915332,4.682,4091.3,4091.2,4.81897062]
[1760500915851,4.682,4091.3,4091.2,4.36427062]
[1760500916371,3.581,4091.3,4091.2,4.81897062]
[1760500916659,3.581,4091.3,4091.2,1.92]
[1760500916862,3.581,4091.3,4091.1,0.22430001]
[1760500916863,2.48,4091.3,4091.1,1e-08]
[1760500917065,0.4797,4091.2,4091.1,1e-08]
[1760500917229,0.1216,4091.2,4091.1,1e-08]
[1760500917661,0.2254,4091.2,4091.1,1e-08]
[1760500917967,0.1216,4091.2,4091.1,1e-08]
[1760500919028,2.6016,4091.2,4091.1,1e-08]
[1760500919555,0.1216,4091.2,4091.1,1e-08]
[1760500919860,2.6016,4091.2,4091.1,1e-08]
[1760500920427,0.1216,4091.2,4091.1,1e-08]
[1760500920744,2.6016,4091.2,4091.1,1e-08]
[1760500921759,3.10616944,4091.2,4091.1,1e-08]
[1760500922158,3.20996944,4091.2,4091.1,1e-08]
[1760500922458,0.1216,4091.2,4091.1,2.44433038]
[1760500922624,2.48,4091.2,4091.1,0.67900001]
[1760500922824,2.48,4091.2,4091.1,2.66863038]
[1760500923025,2.48,4091.2,4091.1,3.12333038]
[1760500923442,0.1216,4091.5,4091.1,0.67900001]
[1760500923660,2.48,4091.4,4091.3,2.44416346]
[1760500923859,2.48,4091.4,4091.2,2.89892707]
[1760500924062,2.48,4091.4,4091.3,2.44421088]
[1760500924367,2.48,4091.4,4091.1,1e-08]
[1760500924751,0.1216,4091.2,4091.1,1e-08]
[1760500925245,1.101,4091.2,4091.1,3.12333038]
[1760500925450,4.682,4091.2,4091.1,3.12333038]
[1760500925875,4.682,4091.2,4091.1,2.66863038]
[1760500926096,4.682,4091.2,4091.1,0.22430001]
[1760500926263,4.682,4091.2,4091.1,1e-08]
[1760500926448,3.7026,4091.2,4091.1,1e-08]
[1760500927370,2.6016,4091.2,4091.1,1e-08]
[1760500927959,0.1216,4091.2,4091.1,1e-08]
[1760500928155,2.6016,4091.2,4091.1,1e-08]
[1760500929388,2.86176,4091.2,4091.1,1e-08]
[1760500930448,2.6016,4091.2,4091.1,1e-08]
[1760500930861,5.78457062,4091.2,4091.1,1e-08]
[1760500933078,7.70457062,4091.2,4091.1,1e-08]
[1760500933665,7.59947062,4091.2,4091.1,1e-08]
[1760500933964,7.70457062,4091.2,4091.1,1e-08]
[1760500934169,8.7577821,4091.2,4091.1,1e-08]
[1760500935296,10.9597821,4091.2,4091.1,1e-08]
[1760500936199,6.2777821,4091.2,4091.1,1e-08]
[1760500936594,8.7577821,4091.2,4091.1,1e-08]
[1760500938208,5.4174821,4091.2,4091.1,1e-08]
[1760500938634,6.84427062,4091.2,4091.1,1e-08]
[1760500938930,7.47787062,4091.2,4091.1,1e-08]
[1760500939725,4.99787062,4091.2,4091.1,1e-08]
[1760500939941,7.47787062,4091.2,4091.1,1e-08]
[1760500940439,2.5536,4091.2,4091.1,1e-08]
[1760500940606,7.47787062,4091.2,4091.1,1e-08]
[1760500940811,6.0258034,4091.2,4091.1,1e-08]
[1760500941638,8.47007402,4091.2,4091.1,1e-08]
[1760500943855,6.0258034,4091.2,4091.1,1e-08]
[1760500944055,5.0336,4091.2,4091.1,1e-08]
[1760500944557,7.47787062,4091.2,4091.1,1e-08]
[1760500945346,9.68187062,4091.2,4091.1,1e-08]
[1760500947033,8.57987062,4091.2,4091.1,1e-08]
[1760500947563,7.58297062,4091.2,4091.1,1e-08]
[1760500947763,9.05508516,4091.2,4091.1,1e-08]
[1760500949268,9.05508516,4091.2,4090.5,0.002]
[1760500949269,2.44462914,4090.6,4090.5,0.002]
[1760500949478,11.78888498,4090.6,4090.5,0.002]
[1760500949646,11.89468498,4090.6,4090.5,0.002]
[1760500949849,9.84947322,4090.6,4090.5,0.002]
[1760500950763,6.98602784,4090.6,4090.5,0.002]
[1760500950961,9.46602784,4090.6,4090.5,0.002]
[1760500952649,0.6336,4088.9,4088.0,0.2243]
[1760500952907,0.6336,4088.5,4087.6,0.2187]
[1760500953174,0.6336,4088.5,4087.3,0.2187]
[1760500953175,2.44726394,4088.2,4087.3,0.2187]
[1760500953379,0.00133887,4087.5,4087.3,0.2187]
[1760500953543,4.92654303,4087.4,4087.3,0.6641]
[1760500953748,3.1136,4087.4,4087.3,0.6641]
[1760500954188,3.1136,4087.4,4087.3,0.2187]
[1760500954477,3.1136,4087.4,4087.3,0.6641]
[1760500954975,0.6336,4087.4,4087.3,0.6641]
[1760500955152,3.1136,4087.4,4087.3,0.6641]
[1760500955477,0.6336,4087.3,4086.9,0.4454]
[1760500955642,2.481,4087.2,4087.1,0.4454]
[1760500956284,2.481,4087.2,4086.9,0.2187]
[1760500956285,0.6336,4087.1,4086.9,0.2187]
[1760500956587,2.5536,4087.1,4086.9,0.2187]
[1760500956770,2.5536,4087.1,4086.6,0.2187]
[1760500956771,0.6336,4086.9,4086.6,0.2187]
[1760500957074,2.55513043,4086.7,4086.1,0.4454]
[1760500957276,0.6336,4087.0,4086.1,0.4454]
[1760500957490,0.6336,4087.0,4086.1,2.89266169]
[1760500957690,4.401,4086.9,4086.2,2.89264908]
[1760500957847,4.401,4086.9,4086.3,3.203735]
[1760500958046,4.401,4086.8,4086.4,0.4454]
[1760500958274,2.481,4086.8,4086.4,0.4454]
[1760500959187,2.481,4086.8,4086.4,2.89253278]
[1760500959346,0.1216,4086.5,4086.0,0.2187]
[1760500959548,2.481,4086.4,4086.3,2.44719033]
[1760500959857,2.481,4086.4,4086.3,2.87819033]
[1760500960283,2.481,4086.4,4086.3,2.87820162]
[1760500960483,2.481,4086.4,4086.3,0.431]
[1760500962183,0.6336,4086.8,4086.3,0.431]
[1760500962395,2.482,4086.7,4086.0,0.2187]
[1760500962553,2.482,4086.7,4086.3,0.431]
[1760500963275,2.482,4086.7,4086.0,2.66602271]
[1760500963478,2.5536,4086.6,4086.0,0.6497]
[1760500963677,5.0006417,4086.6,4086.0,0.2187]
[1760500963853,5.0006417,4086.6,4085.9,0.2187]
[1760500964056,5.0006417,4086.6,4085.7,2.87855841]
[1760500964254,5.0006417,4086.6,4085.5,0.2203]
[1760500964255,0.63522624,4086.3,4085.5,0.2203]
[1760500964483,0.6336,4086.1,4085.0,2.66666773]
[1760500964663,0.6336,4085.9,4085.1,0.431]
[1760500964859,2.482,4085.8,4085.2,2.44782883]
[1760500965059,2.482,4085.8,4085.1,0.431]
[1760500965381,1.102,4085.7,4085.1,0.431]
[1760500965581,2.482,4085.8,4085.3,2.44779367]
[1760500965782,2.482,4085.8,4085.4,2.8787307]
[1760500965950,2.482,4085.8,4085.4,2.4477307]
[1760500966287,2.482,4085.8,4085.5,0.431]
[1760500966759,0.3838016,4086.3,4085.6,0.431]
[1760500966955,1.92,4086.1,4085.6,0.431]
[1760500967155,1.92,4086.1,4085.7,0.431]
[1760500967376,0.6336,4086.0,4085.0,0.2187]
[1760500967681,0.6336,4086.2,4085.3,0.431]
[1760500967891,2.5536,4086.0,4085.4,2.44770976]
[1760500968053,2.5536,4086.0,4085.5,2.44767961]
[1760500968248,2.5536,4086.0,4085.2,0.431]
[1760500968553,0.6336,4085.6,4085.1,0.002]
[1760500968879,2.482,4085.5,4085.1,0.002]
[1760500969358,0.6336,4085.4,4085.1,0.002]
[1760500969759,0.6336,4085.2,4085.1,0.002]
[1760500969974,5.00146056,4085.2,4085.1,0.002]
[1760500970178,8.2394998,4085.2,4085.1,0.002]
[1760500970553,5.86871359,4085.2,4085.1,0.002]
[1760500970780,5.7574998,4085.2,4085.1,0.002]
[1760500970980,3.1156,4085.2,4085.1,0.002]
[1760500971284,5.0356,4085.2,4085.1,0.002]
[1760500971453,0.00172208,4085.9,4085.1,0.433]
[1760500971454,0.6336,4085.9,4085.1,0.433]
[1760500971655,5.0356,4085.8,4085.1,2.88091335]
[1760500971849,5.0356,4085.8,4085.1,0.002]
[1760500972056,2.5536,4085.6,4085.1,0.002]
[1760500972275,2.5536,4085.4,4085.1,0.002]
[1760500972554,3.08335038,4085.2,4085.1,0.002]
[1760500972782,7.48535038,4085.2,4085.1,0.002]
[1760500973087,7.59465038,4085.2,4085.1,0.002]
[1760500973255,8.5988905,4085.2,4085.1,0.002]
[1760500973965,8.98278403,4085.2,4085.1,0.002]
[1760500974368,3.08381783,4084.7,4084.6,1e-08]
[1760500974577,20.61760685,4084.7,4084.6,1e-08]
[1760500974772,22.78926754,4084.7,4084.6,1e-08]
[1760500975451,23.17328667,4084.7,4084.6,1e-08]
[1760500976152,2.4507454,4084.3,4084.2,0.002]
[1760500976353,2.44867036,4083.9,4082.0,0.2203]
[1760500976558,0.6336,4082.5,4082.0,0.2203]
[1760500976758,0.6336,4082.3,4082.1,0.4746]
[1760500976987,2.487,4082.2,4082.0,0.2203]
[1760500977355,2.487,4082.2,4081.0,0.2203]
[1760500977356,0.6336,4082.1,4081.5,0.2219]
[1760500977560,0.6336,4081.9,4081.5,0.6965]
[1760500977771,2.488,4081.8,4081.6,0.4746]
[1760500977990,0.6336,4082.2,4081.7,0.4746]
[1760500978287,2.5536,4082.0,4081.5,0.2219]
[1760500978486,2.489,4081.9,4081.6,0.4746]
[1760500978792,1.92,4082.0,4081.7,0.4746]
[1760500978974,2.488,4081.8,4081.7,0.4746]
[1760500979175,2.488,4081.8,4081.5,0.2219]
[1760500979374,2.488,4081.8,4081.6,0.4746]
[1760500979982,0.6336,4081.9,4081.5,0.2219]
[1760500980183,3.1226,4081.8,4081.7,0.4746]
[1760500980991,3.1226,4081.8,4081.5,0.2219]
[1760500981193,3.1226,4081.8,4081.5,0.6965]
[1760500981366,0.73703101,4083.6,4081.1,0.4746]
[1760500981564,0.73703101,4083.6,4081.2,0.4746]
[1760500981565,0.6336,4082.3,4081.2,0.4746]
[1760500981774,2.5536,4082.1,4081.2,0.4746]
[1760500982197,2.94517933,4085.4,4081.2,0.4746]
[1760500982198,0.6336,4083.2,4081.3,0.02450199]
[1760500982395,2.5536,4083.0,4081.4,0.76954214]
[1760500982580,0.51015507,4083.1,4081.5,0.49910079]
[1760500982894,0.00232144,4083.7,4082.6,2.44941845]
[1760500983096,0.4746,4083.8,4082.7,0.6965]
[1760500983266,2.489,4083.6,4082.7,0.6965]
[1760500983462,0.1742,4083.9,4082.8,0.4746]
[1760500983663,2.4481602,4084.7,4082.8,0.4746]
[1760500983867,0.34713195,4084.6,4082.9,0.33908364]
[1760500984102,2.49205763,4084.5,4083.5,2.44887683]
[1760500984275,2.49205763,4084.5,4083.6,0.2219]
[1760500984276,2.5536,4084.4,4083.6,0.2219]
[1760500984490,0.00208161,4084.7,4082.9,0.31459125]
[1760500984693,0.559,4084.6,4083.7,2.4487597]
[1760500984895,2.49,4084.5,4083.8,0.4746]
[1760500985080,0.38399088,4084.8,4083.8,0.4746]
[1760500985402,1.104,4084.7,4084.0,0.2219]
[1760500985567,2.208,4084.7,4084.6,2.67012014]
[1760500985769,0.17430229,4086.4,4084.8,2.44810027]
[1760500986008,0.38387986,4085.5,4084.9,0.0244804]
[1760500986167,2.44845087,4086.8,4085.6,2.44760509]
[1760500986367,2.44715311,4086.4,4085.4,0.2219]
[1760500986567,0.38380294,4085.9,4085.5,2.44766762]
[1760500986803,2.44683625,4087.0,4085.6,0.4746]
[1760500986968,0.38379215,4086.1,4086.0,2.44737809]
[1760500987174,0.38379215,4086.1,4085.5,0.55920176]
[1760500987175,2.491,4086.1,4085.5,0.55920176]
[1760500987401,2.491,4086.1,4085.5,0.4746]
[1760500987601,0.38376358,4086.4,4085.7,2.44750177]
[1760500987802,2.491,4086.3,4085.8,2.92210023]
[1760500988002,4.411,4086.3,4085.9,0.4746]
[1760500988305,4.411,4086.3,4085.4,0.2219]
[1760500988469,0.6336,4086.2,4085.5,0.4746]
[1760500988800,1.17643636,4086.2,4085.5,0.4746]
[1760500989003,0.6336,4086.0,4085.5,0.4746]
[1760500989395,2.491,4085.9,4085.6,2.44762091]
[1760500989710,2.491,4085.8,4085.7,2.922161]
[1760500989893,0.6336,4086.3,4086.0,2.44737132]
[1760500990100,0.6336,4086.3,4086.2,0.2223]